fUSD/lending_fUSD_20240524
["ID","MTS","AMOUNT","RATE_DAILY","PERIOD"]
[327872309,1716569401981,-200.0,0.000129,4]
[327872310,1716569402005,-312.8036234,0.000129,2]
[327872311,1716569402026,-10351.71373202,0.000129,2]
[327872312,1716569402048,-1724.53,0.00012938,2]
[327872313,1716569402070,-292.57611342,0.0001299,2]
[327872314,1716569402092,-292.57611342,0.0001299,2]
[327872315,1716569402116,-292.57611342,0.0001299,2]
[327872316,1716569402137,-7066.52057408,0.00012998,2]
[327872317,1716569402160,-155.81256225,0.00012998,2]
[327872318,1716569402183,-615.452466,0.00012998,2]
[327872319,1716569402205,-174.87662818,0.00012998,2]
[327872320,1716569402232,-155.33425455,0.00012998,2]
[327872321,1716569402254,-274.58778746,0.00012999,2]
[327872322,1716569402277,-226.76655076,0.00012999,2]
[327872323,1716569402301,-155.97483836,0.00012999,2]
[327872324,1716569402323,-155.96690999,0.00012999,2]
[327872325,1716569402345,-155.0,0.00012999,2]
[327872326,1716569402368,-155.0,0.00012999,2]
[327872327,1716569402393,-1091916.75986164,0.00013,2]
[327872335,1716569432214,-882.42213264,0.000129,2]
[327872336,1716569432240,-535.16703454,0.000129,2]
[327872337,1716569432257,-317.52312762,0.000129,2]
[327872338,1716569432277,-79.98144349,0.00012998,2]
[327872339,1716569432369,-75.01855651,0.00012998,2]
[327872340,1716569432381,-505.36917605,0.00012998,2]
[327872341,1716569432390,-150.0,0.00012999,2]
[327872342,1716569432399,-150.0,0.00012999,2]
[327872343,1716569432408,-214.8036899,0.00013,2]
[327872344,1716569432427,-3944.62544392,0.00013,2]
[327872345,1716569432594,-368.16458252,0.00013,2]
[327872348,1716569437455,-0.44298893,0.00013,2]
[327872349,1716569437467,-17517.72027903,0.00013,2]
[327872350,1716569437480,-6791.36110717,0.00013,2]
[327872351,1716569437492,-269435.10991843,0.00013,2]
[327872352,1716569437503,-4084.76023403,0.00013,2]
[327872353,1716569437514,-5542.227312,0.00013,2]
[327872354,1716569437526,-8248.0,0.00013,2]
[327872355,1716569437538,-5475.96,0.00013,2]
[327872356,1716569437550,-41070.46227757,0.00013,2]
[327872357,1716569437646,-907.87201028,0.00013,2]
[327872358,1716569437658,-266.61601274,0.00013,2]
[327872359,1716569437670,-16987.04296678,0.00013,2]
[327872360,1716569437682,-8156.16,0.00013,2]
[327872361,1716569437694,-7595532.2048025,0.00013,2]
[327872362,1716569437704,-178996.92054334,0.00013,2]
[327872363,1716569437715,-1023023.61945661,0.00013,2]
[327872608,1716569440187,-353.87166317,0.00013,2]
[327872610,1716569440199,-1216.421023,0.00013,2]
[327872625,1716569440331,-46259.96741003,0.00013,2]
[327872847,1716569442417,-639.73472364,0.00013,2]
[327872934,1716569443270,-1477.83317733,0.00013,2]
[327872935,1716569443284,-1605.93138325,0.00013,2]
[327872936,1716569443296,-1352.6025662,0.00013,2]
[327872937,1716569443307,-1310.89655929,0.00013,2]
[327872939,1716569443318,-1317.63765125,0.00013,2]
[327872941,1716569443329,-720.61822955,0.00013,2]
[327872944,1716569443342,-2268.35940618,0.00013,2]
[327872987,1716569444068,-680.3546727,0.00013,2]
[327872989,1716569444185,-3269.42522147,0.00013,2]
[327872991,1716569444277,-1014.6249167,0.00013,2]
[327873039,1716569445851,-1234543.52103186,0.00013,2]
[327873054,1716570018031,173.94,0.00010739,2]
[327873055,1716570144405,-529.6006328,0.00011163,2]
[327873057,1716570161409,150.6006328,0.00011163,2]
[327873058,1716570184038,150.0,9.834e-05,2]
[327873059,1716570305147,409.86295543,0.0001,2]
[327873060,1716570310920,180.26956979,0.0001,2]
[327873061,1716570321108,456.08942149,0.0001,2]
[327873063,1716570326856,180.19074027,0.0001,2]
[327873064,1716570343222,180.23015503,0.0001,2]
[327873065,1716570343927,-155.0,0.00011099,2]
[327873066,1716570343948,-529.6006328,0.00011099,2]
[327873067,1716570343968,-3285.77643226,0.00011099,2]
[327873068,1716570343990,-940.00899289,0.000111,2]
[327873069,1716570344011,-5567.88237454,0.00011155,2]
[327873070,1716570344032,-3010.74416602,0.00011156,2]
[327873071,1716570344056,-155.0,0.00011157,2]
[327873072,1716570344078,-2001.45925385,0.00011159,2]
[327873073,1716570344100,-360.58,0.00011175,2]
[327873074,1716570347120,186.520838,0.00011043,2]
[327873075,1716570347967,1298.78853938,0.00011098,2]
[327873077,1716570362859,180.23015503,0.0001,2]
[327873079,1716570382899,180.23015503,0.0001,2]
[327873082,1716570398872,180.04851818,0.0001,2]
[327873091,1716570459043,4000.0,0.00031,120]
[327873092,1716570465971,-1206.57274375,0.00011783,2]
[327873093,1716570465993,-155.0,0.00011783,2]
[327873094,1716570466016,-2330.40901735,0.00011785,2]
[327873095,1716570466040,-1133.52729971,0.00011786,2]
[327873096,1716570466062,-800.0,0.00011983,2]
[327873097,1716570466087,-173.75,0.00012293,2]
[327873098,1716570466112,-43334.51245494,0.00012403,2]
[327873099,1716570466135,-39135.0273322,0.00012404,2]
[327873100,1716570466156,-150.0,0.00012405,2]
[327873101,1716570466178,-502.0,0.00012405,2]
[327873102,1716570466199,-173.51087384,0.00012406,2]
[327873103,1716570466221,-260.41830879,0.00012406,2]
[327873104,1716570466244,-1244.65551196,0.00012406,2]
[327873105,1716570466266,-3283.1246703,0.00012406,2]
[327873106,1716570466289,-1500.0,0.00012406,2]
[327873107,1716570466310,-563.05717629,0.00012406,2]
[327873108,1716570466331,-155.16365009,0.00012406,2]
[327873109,1716570466353,-244.43667702,0.00012406,2]
[327873110,1716570466375,-939.41810377,0.00012406,2]
[327873111,1716570466398,-526.12031069,0.00012407,2]
[327873112,1716570466419,-267.89346007,0.00012407,2]
[327873113,1716570466444,-2813.98016787,0.00012407,2]
[327873114,1716570466466,-23900.0,0.00012409,2]
[327873115,1716570466489,-250.0,0.00012476,2]
[327873116,1716570466512,-2606.040207,0.0001274,2]
[327873117,1716570466535,-1566.72319261,0.00012818,2]
[327873118,1716570466557,-1475.33613403,0.0001287,2]
[327873119,1716570466805,-441.72413125,0.00012888,2]
[327873120,1716570466828,-644.88840543,0.00012888,2]
[327873121,1716570466850,-441.72413125,0.00012889,2]
[327873122,1716570466871,-452.65802517,0.0001289,2]
[327873123,1716570466892,-441.72413125,0.0001289,2]
[327873124,1716570466912,-441.72413125,0.0001289,2]
[327873125,1716570466933,-644.88840543,0.0001289,2]
[327873126,1716570466955,-3557.32456977,0.00012898,2]
[327873127,1716570466976,-2509.7304,0.00012899,2]
[327873128,1716570466996,-2925.1475,0.000129,2]
[327873129,1716570467017,-9443.82613196,0.000129,2]
[327873255,1716570632699,-1979.27555,0.00012238,2]
[327873256,1716570632712,-166.71,0.000123,2]
[327873264,1716570632722,-23900.0,0.000123,2]
[327873265,1716570632914,-155.0,0.00012624,2]
[327873266,1716570632925,-155.0,0.00012625,2]
[327873267,1716570632934,-1206.57274375,0.00012625,2]
[327873268,1716570632946,-200.0,0.00012691,2]
[327873269,1716570632957,-6750.44346804,0.000129,2]
[327873270,1716570632967,-407.39222268,0.000129,2]
[327873271,1716570632978,-307.55,0.00012964,2]
[327873272,1716570632989,-150.0,0.00012969,2]
[327873273,1716570632998,-424.055166,0.00012969,2]
[327873274,1716570633008,-424.055166,0.00012969,2]
[327873275,1716570633018,-424.055166,0.00012969,2]
[327873276,1716570633028,-424.055166,0.00012969,2]
[327873277,1716570633038,-424.055166,0.00012969,2]
[327873278,1716570633047,-424.055166,0.00012969,2]
[327873279,1716570633057,-424.055166,0.00012969,2]
[327873280,1716570633067,-424.055166,0.00012969,2]
[327873281,1716570633077,-424.055166,0.00012969,2]
[327873282,1716570633087,-424.055166,0.00012969,2]
[327873283,1716570633097,-424.055166,0.00012969,2]
[327873284,1716570633107,-644.88840543,0.0001297,2]
[327873285,1716570633117,-644.88840543,0.0001297,2]
[327873287,1716570633127,-644.88840543,0.0001297,2]
[327873288,1716570633137,-424.055166,0.0001297,2]
[327873289,1716570633147,-424.055166,0.0001297,2]
[327873290,1716570633157,-424.055166,0.0001297,2]
[327873291,1716570633169,-424.055166,0.0001297,2]
[327873292,1716570633179,-424.055166,0.0001297,2]
[327873293,1716570633188,-424.055166,0.0001297,2]
[327873294,1716570633198,-644.88840543,0.00012977,2]
[327873295,1716570633208,-424.055166,0.00012977,2]
[327873296,1716570633218,-1512.47562545,0.00012978,2]
[327873297,1716570633228,-11912.96173161,0.00012978,2]
[327873298,1716570633241,-38087.03826839,0.00012978,2]
[327873299,1716570633251,-424.055166,0.00012978,2]
[327873300,1716570633260,-644.88840543,0.00012979,2]
[327873301,1716570633270,-644.88840543,0.00012979,2]
[327873302,1716570633280,-424.055166,0.00012979,2]
[327873303,1716570633290,-424.055166,0.00012979,2]
[327873304,1716570633299,-424.055166,0.00012979,2]
[327873305,1716570633309,-25496.3491645,0.00012979,2]
[327873306,1716570633371,-334.62848752,0.00012979,2]
[327873307,1716570633383,-1432.70576552,0.00012979,2]
[327873308,1716570633393,-644.88840543,0.0001298,2]
[327873309,1716570633402,-644.88840543,0.0001298,2]
[327873310,1716570633413,-644.88840543,0.0001298,2]
[327873311,1716570633422,-644.88840543,0.0001298,2]
[327873312,1716570633432,-644.88840543,0.0001298,2]
[327873313,1716570633441,-644.88840543,0.0001298,2]
[327873314,1716570633450,-644.88840543,0.0001298,2]
[327873315,1716570633460,-644.88840543,0.0001298,2]
[327873316,1716570633469,-644.88840543,0.0001298,2]
[327873317,1716570633478,-644.88840543,0.0001298,2]
[327873318,1716570633488,-644.88840543,0.0001298,2]
[327873319,1716570633497,-644.88840543,0.0001298,2]
[327873320,1716570633506,-644.88840543,0.0001298,2]
[327873321,1716570633515,-424.055166,0.0001298,2]
[327873322,1716570633524,-424.055166,0.0001298,2]
[327873323,1716570633534,-424.055166,0.0001298,2]
[327873324,1716570633544,-424.055166,0.0001298,2]
[327873325,1716570633554,-424.055166,0.0001298,2]
[327873326,1716570633564,-424.055166,0.0001298,2]
[327873327,1716570633574,-424.055166,0.0001298,2]
[327873328,1716570633584,-644.88840543,0.00012987,2]
[327873329,1716570633593,-644.88840543,0.00012987,2]
[327873330,1716570633603,-644.88840543,0.00012987,2]
[327873331,1716570633612,-644.88840543,0.00012987,2]
[327873332,1716570633621,-424.055166,0.00012987,2]
[327873333,1716570633635,-424.055166,0.00012987,2]
[327873334,1716570633644,-424.055166,0.00012987,2]
[327873335,1716570633653,-424.055166,0.00012987,2]
[327873336,1716570633665,-424.055166,0.00012987,2]
[327873337,1716570633675,-424.055166,0.00012987,2]
[327873338,1716570633685,-424.055166,0.00012987,2]
[327873339,1716570633695,-424.055166,0.00012987,2]
[327873340,1716570633706,-644.88840543,0.00012988,2]
[327873341,1716570633715,-644.88840543,0.00012989,2]
[327873342,1716570633725,-644.88840543,0.00012989,2]
[327873343,1716570633734,-644.88840543,0.00012989,2]
[327873344,1716570633744,-644.88840543,0.00012989,2]
[327873345,1716570633753,-644.88840543,0.00012989,2]
[327873346,1716570633762,-644.88840543,0.00012989,2]
[327873347,1716570633772,-644.88840543,0.00012989,2]
[327873348,1716570633781,-424.055166,0.00012989,2]
[327873349,1716570633791,-424.055166,0.00012989,2]
[327873350,1716570633801,-644.88840543,0.0001299,2]
[327873351,1716570633811,-644.88840543,0.0001299,2]
[327873352,1716570633820,-644.88840543,0.0001299,2]
[327873353,1716570633829,-644.88840543,0.0001299,2]
[327873354,1716570633839,-644.88840543,0.0001299,2]
[327873355,1716570633848,-644.88840543,0.0001299,2]
[327873356,1716570633858,-644.88840543,0.0001299,2]
[327873357,1716570633867,-644.88840543,0.0001299,2]
[327873358,1716570633876,-644.88840543,0.0001299,2]
[327873359,1716570633885,-644.88840543,0.0001299,2]
[327873360,1716570633895,-644.88840543,0.0001299,2]
[327873361,1716570633905,-644.88840543,0.0001299,2]
[327873362,1716570633915,-644.88840543,0.0001299,2]
[327873363,1716570633925,-644.88840543,0.0001299,2]
[327873364,1716570633934,-644.88840543,0.0001299,2]
[327873365,1716570633943,-644.88840543,0.0001299,2]
[327873366,1716570633952,-644.88840543,0.0001299,2]
[327873367,1716570633962,-424.055166,0.0001299,2]
[327873368,1716570633976,-424.055166,0.0001299,2]
[327873369,1716570633985,-424.055166,0.0001299,2]
[327873370,1716570633995,-424.055166,0.0001299,2]
[327873371,1716570634004,-424.055166,0.0001299,2]
[327873372,1716570634014,-424.055166,0.0001299,2]
[327873373,1716570634023,-424.055166,0.0001299,2]
[327873374,1716570634033,-424.055166,0.0001299,2]
[327873375,1716570634043,-424.055166,0.0001299,2]
[327873376,1716570634052,-424.055166,0.0001299,2]
[327873377,1716570634061,-424.055166,0.0001299,2]
[327873378,1716570634071,-424.055166,0.0001299,2]
[327873379,1716570634080,-424.055166,0.0001299,2]
[327873380,1716570634090,-424.055166,0.0001299,2]
[327873381,1716570634099,-424.055166,0.0001299,2]
[327873382,1716570634109,-424.055166,0.0001299,2]
[327873383,1716570634118,-424.055166,0.0001299,2]
[327873384,1716570634128,-424.055166,0.0001299,2]
[327873385,1716570634138,-424.055166,0.0001299,2]
[327873386,1716570634148,-424.055166,0.0001299,2]
[327873387,1716570634158,-424.055166,0.0001299,2]
[327873388,1716570634169,-424.055166,0.0001299,2]
[327873389,1716570634178,-424.055166,0.0001299,2]
[327873390,1716570634188,-424.055166,0.0001299,2]
[327873391,1716570634197,-424.055166,0.0001299,2]
[327873392,1716570634207,-424.055166,0.0001299,2]
[327873393,1716570634218,-424.055166,0.0001299,2]
[327873394,1716570634227,-424.055166,0.0001299,2]
[327873395,1716570634237,-424.055166,0.0001299,2]
[327873396,1716570634247,-424.055166,0.0001299,2]
[327873397,1716570634256,-424.055166,0.0001299,2]
[327873398,1716570634266,-424.055166,0.0001299,2]
[327873399,1716570634275,-424.055166,0.0001299,2]
[327873400,1716570634285,-424.055166,0.0001299,2]
[327873401,1716570634294,-424.055166,0.0001299,2]
[327873402,1716570634304,-424.055166,0.0001299,2]
[327873403,1716570634313,-424.055166,0.0001299,2]
[327873404,1716570634323,-424.055166,0.0001299,2]
[327873405,1716570634333,-424.055166,0.0001299,2]
[327873406,1716570634343,-424.055166,0.0001299,2]
[327873407,1716570634352,-424.055166,0.0001299,2]
[327873408,1716570634362,-424.055166,0.0001299,2]
[327873409,1716570634371,-424.055166,0.0001299,2]
[327873410,1716570634381,-424.055166,0.0001299,2]
[327873411,1716570634391,-424.055166,0.0001299,2]
[327873412,1716570634400,-424.055166,0.0001299,2]
[327873413,1716570634410,-424.055166,0.0001299,2]
[327873414,1716570634419,-424.055166,0.0001299,2]
[327873415,1716570634429,-7519.40413428,0.00012997,2]
[327873416,1716570634438,-2364.2726144,0.00012997,2]
[327873417,1716570634448,-208.81790596,0.00012997,2]
[327873418,1716570634457,-499.99,0.00012997,2]
[327873419,1716570634467,-1655.74,0.00012997,2]
[327873420,1716570634477,-489.95530596,0.00012999,2]
[327873421,1716570634486,-198.07010589,0.00012999,2]
[327873422,1716570634496,-262.67871929,0.00012999,2]
[327873423,1716570634506,-155.63383779,0.00012999,2]
[327873424,1716570634517,-377.88213118,0.00012999,2]
[327873425,1716570634527,-155.9133629,0.00012999,2]
[327873426,1716570634536,-530.90334344,0.00012999,2]
[327873427,1716570634553,-106850.22675447,0.00013,2]
[327873433,1716570638433,-624.01902801,0.00012237,2]
[327873434,1716570638444,-545.53497201,0.00012626,2]
[327873435,1716570638530,-2027.41785388,0.00012626,2]
[327873436,1716570638619,-2284.96475,0.00012626,2]
[327873437,1716570638638,-9944.53432903,0.00012626,2]
[327873438,1716570638649,-424.055166,0.0001299,2]
[327873439,1716570638661,-424.055166,0.0001299,2]
[327873440,1716570638672,-424.055166,0.0001299,2]
[327873441,1716570638683,-424.055166,0.0001299,2]
[327873442,1716570638694,-424.055166,0.0001299,2]
[327873443,1716570638707,-424.055166,0.0001299,2]
[327873444,1716570638719,-424.055166,0.0001299,2]
[327873445,1716570638729,-424.055166,0.0001299,2]
[327873446,1716570638739,-424.055166,0.0001299,2]
[327873447,1716570638750,-424.055166,0.0001299,2]
[327873448,1716570638760,-424.055166,0.0001299,2]
[327873449,1716570638771,-424.055166,0.0001299,2]
[327873450,1716570638782,-424.055166,0.0001299,2]
[327873451,1716570638792,-4095.27941275,0.00013,2]
[327873452,1716570638802,-18408.43603851,0.00013,2]
[327873453,1716570638812,-3000.0,0.00013,2]
[327873454,1716570638823,-200.0,0.0001309,2]
[327873455,1716570638835,-1397.58675026,0.00013174,2]
[327873457,1716570638845,-2545.51,0.00013381,2]
[327873459,1716570638856,-360.58,0.00013439,2]
[327873461,1716570638866,-800.0,0.0001348,2]
[327873463,1716570638876,-2751.0,0.00013699,2]
[327873465,1716570638887,-200.0,0.00013699,2]
[327873467,1716570638897,-500.0,0.00013699,2]
[327873470,1716570638907,-1255.39,0.00013699,2]
[327873472,1716570638920,-333.13,0.00013973,2]
[327873474,1716570638931,-170.37,0.00013973,2]
[327873476,1716570638942,-155.73,0.00013973,2]
[327873478,1716570638952,-171.24,0.00013973,2]
[327873480,1716570638963,-3000.0,0.0001405,2]
[327873482,1716570638973,-173.87,0.00014072,2]
[327873484,1716570638983,-171.94,0.00014373,2]
[327873486,1716570638994,-291.568485,0.00014521,2]
[327873488,1716570639005,-161.02,0.0001461,2]
[327873490,1716570639016,-161.02,0.00014622,2]
[327873492,1716570639025,-161.02,0.00014634,2]
[327873495,1716570639036,-161.02,0.00014646,2]
[327873497,1716570639046,-161.02,0.00014659,2]
[327873499,1716570639057,-161.02,0.00014671,2]
[327873501,1716570639068,-161.02,0.00014683,2]
[327873503,1716570639079,-200.0,0.00014726,2]
[327873505,1716570639091,-800.0,0.00014978,2]
[327873507,1716570639103,-2568.32914282,0.00015,2]
[327873509,1716570639114,-155.0,0.00015,2]
[327873511,1716570639125,-155.0,0.00015,2]
[327873514,1716570639136,-155.0,0.00015,2]
[327873516,1716570639147,-619.21183689,0.00015,2]
[327873518,1716570639159,-4216.46949185,0.00015,2]
[327873520,1716570639172,-300.0,0.00015068,2]
[327873522,1716570639184,-3000.0,0.0001531,2]
[327873524,1716570639196,-291.568485,0.00015342,2]
[327873526,1716570639207,-173.75,0.00015367,2]
[327873528,1716570639218,-171.94,0.0001539,2]
[327873531,1716570639230,-407.39222265,0.000154,2]
[327873533,1716570639242,-360.58,0.00015703,2]
[327873535,1716570639253,-177.69,0.00015831,2]
[327873537,1716570639265,-10929.207,0.00015865,2]
[327873539,1716570639276,-9999.99,0.00016116,2]
[327873541,1716570639288,-2545.51,0.0001612,2]
[327873543,1716570639298,-250.0,0.00016136,2]
[327873544,1716570639308,-291.568485,0.00016164,2]
[327873545,1716570639317,-157.29,0.00016257,2]
[327873546,1716570639327,-11501.5499,0.00016338,2]
[327873547,1716570639336,-200.0,0.00016362,2]
[327873548,1716570639345,-171.94,0.00016407,2]
[327873549,1716570639354,-6144.26,0.00016438,2]
[327873550,1716570639364,-300.0,0.00016438,2]
[327873551,1716570639373,-800.0,0.00016476,2]
[327873552,1716570639384,-3000.0,0.0001655,2]
[327873553,1716570639393,-177.69,0.00016702,2]
[327873554,1716570639403,-179.52,0.00016712,2]
[327873555,1716570639414,-151.0,0.0001683,3]
[327873576,1716570639638,-151.0,0.0001683,2]
[327873579,1716570639661,-291.568485,0.00016986,2]
[327873581,1716570639673,-171.94,0.00017423,2]
[327873583,1716570639683,-177.69,0.00017573,2]
[327873585,1716570639692,-173.87,0.0001759,2]
[327873587,1716570639702,-3000.0,0.000178,2]
[327873589,1716570639713,-291.568485,0.00017808,2]
[327873591,1716570639723,-407.39222265,0.000179,2]
[327873593,1716570639732,-360.58,0.00017967,2]
[327873595,1716570639742,-800.0,0.00017974,2]
[327873597,1716570639752,-200.0,0.00017998,2]
[327873599,1716570639762,-804.18664536,0.00018,2]
[327873601,1716570639771,-173.75,0.0001844,2]
[327873603,1716570639780,-177.69,0.00018444,2]
[327873605,1716570639790,-291.568485,0.0001863,2]
[327873608,1716570639800,-2545.51,0.0001886,2]
[327873609,1716570639809,-410.5352738,0.00019,2]
[327873612,1716570639819,-3000.0,0.0001905,2]
[327873614,1716570639828,-5022.72,0.00019178,2]
[327873616,1716570639838,-1255.39,0.00019178,2]
[327873618,1716570639848,-359.68172879,0.000192,2]
[327873631,1716570639964,-3522.95698034,0.000192,2]
[327873633,1716570639974,-317.31630916,0.00019239,2]
[327873635,1716570639984,-6223.84,0.00019339,2]
[327873637,1716570639993,-293.2694985,0.00019339,2]
[327873639,1716570640005,-489.0705015,0.00019339,2]
[327873641,1716570640015,-87.38811739,0.00019339,2]
[327873643,1716570640026,-1055.98696552,0.00019339,2]
[327873697,1716570640540,-412.30786255,0.00019339,2]
[327873699,1716570640551,-2862.30705454,0.00019339,2]
[327873701,1716570640561,-2582.86455293,0.00019339,2]
[327873703,1716570640573,-3236.2249575,0.00019339,2]
[327873705,1716570640584,-752.06503485,0.00019339,2]
[327873707,1716570640595,-999.9998995,0.00019339,2]
[327873759,1716570641092,-618.24538514,0.00019339,2]
[327873783,1716570641309,-929.93454428,0.00019339,2]
[327873969,1716570643172,-13833.8456258,0.00019339,2]
[327873972,1716570643182,-1228.09,0.00019339,2]
[327873975,1716570643192,-5719.82,0.00019339,2]
[327873978,1716570643202,-291.568485,0.00019452,2]
[327873981,1716570643211,-200.0,0.00019634,2]
[327873984,1716570643221,-6241.7602304,0.0002,2]
[327873987,1716570643231,-158.54525026,0.0002,2]
[327873990,1716570643240,-1774.2987608,0.0002,2]
[327873993,1716570643249,-5188.06991851,0.0002,2]
[327873996,1716570643258,-862.59931804,0.0002,2]
[327873998,1716570643267,-1074.71543708,0.0002,4]
[327874001,1716570643277,-226.12850537,0.000201,2]
[327874004,1716570643286,-360.58,0.0002023,2]
[327874008,1716570643296,-291.568485,0.00020274,2]
[327874011,1716570643305,-1541.25446163,0.00020347,2]
[327874014,1716570643315,-333.13,0.00020447,2]
[327874016,1716570643324,-155.73,0.00020447,2]
[327874018,1716570643333,-170.85,0.00020548,2]
[327874020,1716570643343,-1050.0,0.00021,2]
[327874022,1716570643352,-173.87,0.00021108,2]
[327874025,1716570643361,-1541.2544616,0.00021369,2]
[327874026,1716570643371,-3364.3,0.0002137,2]
[327874028,1716570643380,-1078.6983288,0.0002137,2]
[327874073,1716570643796,-423.95581672,0.0002137,2]
[327874075,1716570643809,-424.59752428,0.0002137,2]
[327874077,1716570643821,-524.81401381,0.0002137,2]
[327874081,1716570643851,-370.91947729,0.000204,2]
[327874208,1716570648060,-155.33403949,0.00017259,2]
[327874209,1716570648069,-36.47274536,0.000204,2]
[327874210,1716570648079,-4709.85855983,0.0002137,2]
[327874342,1716571834428,-940.00899289,0.00012768,2]
[327874343,1716571834438,-790.26530989,0.00012769,2]
[327874344,1716571834448,-150.0,0.00012771,2]
[327874345,1716571834457,-1206.57274375,0.00012772,2]
[327874346,1716571834467,-1206.57274375,0.00012772,2]
[327874347,1716571834479,-1206.57274375,0.00012772,2]
[327874348,1716571834489,-4370.7695203,0.00012774,2]
[327874349,1716571834501,-1057.3,0.00012774,2]
[327874350,1716571834566,-417.69656906,0.00012774,2]
[327874351,1716571834579,-7870.62199573,0.00012774,2]
[327874352,1716571834589,-165.81372397,0.00012792,2]
[327874353,1716571834598,-649.3243,0.000129,2]
[327874354,1716571834608,-299.81,0.00013973,2]
[327874355,1716571834618,-210.0,0.00014048,2]
[327874356,1716571834628,-829.36486409,0.000153,2]
[327874357,1716571834637,-3400.0,0.00016612,2]
[327874358,1716571834648,-499.99,0.00016712,2]
[327874359,1716571834659,-179.52,0.00016712,2]
[327874360,1716571834668,-302.48,0.00016788,2]
[327874361,1716571834678,-165.81372396,0.00017796,2]
[327874362,1716571834687,-2751.0,0.00018749,2]
[327874363,1716571834696,-250.0,0.00018909,2]
[327874364,1716571834706,-410.5352738,0.00019,2]
[327874365,1716571834716,-23900.0,0.00019014,2]
[327874366,1716571834726,-302.48,0.00019051,2]
[327874367,1716571834736,-157.29,0.00019098,2]
[327874368,1716571834745,-500.0,0.00019992,2]
[327874369,1716571834755,-2957.92215858,0.0002,2]
[327874370,1716571834768,-3283.83807182,0.0002,2]
[327874371,1716571834777,-862.59931804,0.0002,2]
[327874372,1716571834787,-415.5,0.00020166,2]
[327874373,1716571834797,-1883.87919205,0.00020397,2]
[327874374,1716571834807,-200.0,0.00020414,2]
[327874375,1716571834817,-21208.22407592,0.00020417,2]
[327874376,1716571834826,-883.32528591,0.00020426,2]
[327874377,1716571834836,-299.81,0.00020447,2]
[327874378,1716571834846,-744.57940984,0.00020607,2]
[327874379,1716571834855,-1000.0,0.00020714,2]
[327874380,1716571834864,-1050.0,0.00021,2]
[327874381,1716571834874,-1000.0,0.00021,4]
[327874382,1716571834883,-1000.0,0.00021,3]
[327874383,1716571834893,-1000.0,0.00021,3]
[327874385,1716571834902,-1000.0,0.00021,3]
[327874387,1716571834912,-1000.0,0.00021,2]
[327874389,1716571834921,-1566.72319261,0.00021247,2]
[327874391,1716571834931,-244.43533359,0.0002127,2]
[327874393,1716571834940,-1329.73844358,0.0002127,2]
[327874395,1716571834950,-2336.63076138,0.0002127,2]
[327874399,1716571834979,-597.65331933,0.0002127,2]
[327874407,1716571838147,-267.30803202,0.0002127,2]
[327874408,1716571838157,-317.25521817,0.0002127,2]
[327874409,1716571838168,-302.48,0.00021315,2]
[327874410,1716571838177,-186.46639276,0.00021359,2]
[327874411,1716571838188,-663.76,0.00021359,3]
[327874412,1716571838198,-500.0,0.00021368,2]
[327874413,1716571838208,-500.0,0.00021368,2]
[327874414,1716571838218,-500.0,0.00021368,2]
[327874415,1716571838229,-500.0,0.00021368,2]
[327874416,1716571838239,-390.20511952,0.00021368,2]
[327874417,1716571838249,-500.0,0.00021368,2]
[327874418,1716571838259,-7122.52536215,0.00021369,2]
[327874419,1716571838271,-3202.54761921,0.00021369,2]
[327874420,1716571838284,-67890.36370037,0.00021369,2]
[327874666,1716571840786,-2175.08943834,0.00021369,2]
[327874669,1716571840798,-641.78473751,0.00021369,2]
[327874672,1716571840810,-924.40000002,0.00021369,2]
[327874675,1716571840822,-6786.99221261,0.00021369,2]
[327874756,1716571841614,-120991.63633562,0.00021369,2]
[327874758,1716571841626,-1880.85,0.00021369,2]